Cogmind - Beta 15 @@@ ROGUE MODE // 2025.07.15 @ 10:43:39 Player: winnking222 Result: Self-destructed Performance ------------- Evolutions (2) 1000 Regions Visited (4) 800 Robots Destroyed (49) 245 Value Destroyed (1293) 1293 Prototype IDs (17) 340 Alien Tech Used (0) 0 Bonus (39) 39 TOTAL SCORE: 3717 Bonus ------- Follower Combat Kills 39 Cogmind --------- Core Integrity 189/550 Matter 295/300 Energy 44/275 System Corruption 5% Temperature Cool (9) Movement Walking (450) Ox4 Location -8/Materials Parts ------- > --- POWER (1) -------- Deuterium Engine > --- PROPULSION (4) --- VSS Leg Compact Wheel > --- UTILITY (4) ------ Improved Heat Sink Disposable Heat Sink High-capacity Storage Unit > --- WEAPON (2) ------- Heavy Laser > --- INVENTORY (20) --- Subdweller Power Source Light Treads Compact Matter Pod (21) Tractor Beam Light EM Pulse Cannon Subdweller Beam Cannon Heavy Assault Rifle Subdweller Machine Gun Battle Cannon Subdweller Shrapnel Launcher Improved Grenade Launcher Blade Trap Blade Trap Blade Trap Blade Trap Peak State ------------ > --- POWER ------------ Deuterium Engine > --- PROPULSION ------- Flightbrick > --- UTILITY ---------- Insulated Plating > --- WEAPON ----------- Heavy Particle Gun Light EM Pulse Cannon > --- INVENTORY -------- Subdweller Power Source Light Nuclear Core Subdweller Beam Cannon Subdweller Shrapnel Launcher Blade Trap [Rating: 49] Favorites ----------- Power Ion Engine Engine Ion Engine Power Core Light Nuclear Core Propulsion Light Treads Treads Light Treads Leg Makeshift Leg Wheel Compact Wheel Flight Unit Flightbrick Utility Humpback Device Seismic Detector Storage Humpback Protection Light Armor Plating Weapon Improved Light Cannon Energy Gun Medium Laser Energy Cannon Light EM Pulse Cannon Ballistic Gun Light Assault Rifle Ballistic Cannon Improved Light Cannon Build | -11 -10 -10 -10 -8 ------- Run | Yrd Mat Min Sub Mat Slots Evolved 4 | . . . . 4 Power . | . . . . . Propulsion 2 | . . . . 2 Utility 2 | . . . . 2 Weapon . | . . . . . Parts Attached 44 | 7 4 . 10 23 Power 5 | 1 . . 1 3 Engine 4 | 1 . . 1 2 Core 1 | . . . . 1 Reactor . | . . . . . Propulsion 14 | 2 . . 3 9 Treads 6 | 2 . . . 4 Leg 4 | . . . 1 3 Wheel 3 | . . . 2 1 Hover . | . . . . . Flight 1 | . . . . 1 Utility 11 | 2 2 . 3 4 Device 5 | 1 1 . 1 2 Storage 4 | 1 1 . 2 . Processor . | . . . . . Hackware . | . . . . . Protection 2 | . . . . 2 Artifact . | . . . . . Weapon 14 | 2 2 . 3 7 Energy Gun 4 | 1 . . . 3 Energy Cannon 3 | . . . 2 1 Ballistic Gun 2 | 1 . . . 1 Ballistic Cannon 5 | . 2 . 1 2 Launcher . | . . . . . Special Weapon . | . . . . . Impact Weapon . | . . . . . Slashing Weapon . | . . . . . Piercing Weapon . | . . . . . Special Melee Weapon . | . . . . . Unidentified Prototypes 1 | . . . . 1 Corrupted Parts 2 | . . . . 2 System Corruption 5 | . . . . 5 Parts Lost 19 | . 1 . 11 7 Power 2 | . . . 1 1 Propulsion 8 | . . . 5 3 Utility 5 | . 1 . 2 2 Weapon 4 | . . . 3 1 Highest Loss Streak 5 | . 1 . 3 5 To Critical Strikes . | . . . . . Average Backups 9 | 1 2 10 10 8 Power 2 | 1 1 1 2 2 Propulsion . | . . . . . Utility 2 | . 1 2 2 1 Weapon 4 | . . 6 5 5 Tool/Special . | . . . . . Unused Backups 12 | . . 1 4 7 Power 2 | . . . 1 1 Propulsion . | . . . . . Utility 5 | . . . 2 3 Weapon 5 | . . 1 1 3 Tool/Special . | . . . . . Average Slot Usage (%) 76 | . 100 100 72 81 Engine 13 | . 14 14 13 4 Treads 10 | . 28 28 8 6 Leg 2 | . . . 1 15 Wheel 1 | . . . 1 6 Device 5 | . 14 14 4 11 Storage 13 | . 14 14 14 7 Energy Gun 1 | . 14 . . 9 Energy Cannon 12 | . . . 15 3 Ballistic Cannon 12 | . . 28 12 3 Peak Build Rating 49 | 7 10 11 17 49 Average Rating 11 | 6 7 10 11 23 On Entrance 8 | . 7 10 11 13 Naked Turns . | . . . . . Heaviest Build 213 | 14 34 34 213 65 Greatest Support 40 | 40 40 40 40 40 Greatest Overweight (x) 70 | . . . 70 5 Average Overweight (x) 4 | . . . 6 2 Largest Inventory Capacity 35 | 8 15 15 35 35 Average Capacity 24 | 7 9 15 27 16 Most Carried 20 | 5 10 15 20 16 Average Carried 14 | 1 2 12 16 11 Final Capacity 35 | 8 15 15 35 20 Final Carried 20 | 1 10 15 20 15 Class Distribution -------------------- 51% | Mutant 43% | Hauler-Mutant 5% | Scavenger-Mutant Dominant Class ---------------- Mutant | -10/Materials Mutant | -10/Mines Hauler-Mutant | -10/Subcaves Scavenger-Mutant | -8/Materials Resources | -11 -10 -10 -10 -8 ----------- Run | Yrd Mat Min Sub Mat Matter Collected 2019 | 309 34 218 850 608 Remotely . | . . . . . Salvage Created 1396 | 185 149 136 268 658 Parts 78 | 21 17 6 11 23 Haulers Intercepted 2 | . 1 . . 1 Recyclers Shooed 3 | . 1 . . 2 Parts Field Recycled . | . . . . . Retrieved Matter . | . . . . . Parts Self-Destructed 2 | . . . 2 . Prevented . | . . . . . Kills | -11 -10 -10 -10 -8 ------- Run | Yrd Mat Min Sub Mat Combat Hostiles Destroyed 32 | . 5 5 12 10 Guns 9 | . 5 . . 4 Cannons 22 | . . 5 12 5 Classes Destroyed 9 | 2 3 1 2 1 Worker 1 | 1 . . . . Tunneler 9 | 9 . . . . Hauler 2 | . 1 . . 1 Recycler 2 | . . . . 2 Watcher 3 | . 1 . . 2 Swarmer 7 | . 5 1 . 1 Grunt 10 | . . 4 . 6 Sentry 4 | . . . 1 3 Subdweller 11 | . . . 11 . Best Kill Streak 5 | 3 5 2 2 3 Combat Bots Only 5 | . 5 2 2 2 Max Kills in Single Turn 1 | 1 1 1 1 1 Gunslinging . | . . . . . Exploded . | . . . . . Melee . | . . . . . Uniques/NPCs Destroyed . | . . . . . Combat | -11 -10 -10 -10 -8 -------- Run | Yrd Mat Min Sub Mat Hostile Shots Fired 222 | . 46 15 59 102 Missed 71 | . 15 5 17 34 Hits 151 | . 31 10 42 68 Projectile 151 | . 31 10 42 68 AOE 2 | . . . . 2 Critical Strikes 9 | . 3 1 1 4 Damage Taken 2965 | . 255 152 1229 1329 Core 574 | . 81 32 100 361 Absorbed by Shields . | . . . . . Core Remaining (%) 57 | 100 . . 14 . Volleys Fired 209 | 39 19 9 97 45 Largest 2 | 2 2 2 2 2 Hottest 132 | 70 70 66 112 132 Shots Fired 423 | 78 38 19 201 87 Gun 151 | 78 38 . . 35 Cannon 272 | . . 19 201 52 Launcher . | . . . . . Special . | . . . . . Kinetic 299 | 39 19 19 183 39 Thermal 92 | 39 19 . . 34 Explosive . | . . . . . Electromagnetic 32 | . . . 18 14 Robot Hit Streak 19 | 14 4 4 19 9 Robot Miss Streak 6 | 2 4 5 3 6 Penetration Max . | . . . . . Secondary Targets 2 | . 1 . . 1 Max Gunslinging Chain 1 | . 1 . . 1 Shots Hit Robots 189 | 47 20 10 58 54 Core Hits 74 | 15 8 7 22 22 Critical Kills . | . . . . . Critical Parts Destroyed 1 | . . . . 1 Critical Strikes 10 | 3 3 . 1 3 Burn 8 | 3 3 . . 2 Destroy 1 | . . . . 1 Blast 1 | . . . 1 . Melee Attacks . | . . . . . Impact . | . . . . . Slashing . | . . . . . Piercing . | . . . . . Sneak Attacks . | . . . . . Combat Hostiles . | . . . . . Follow-up Attacks . | . . . . . Damage Inflicted 3456 | 495 221 209 1222 1309 Guns 1157 | 495 221 . . 441 Cannons 2284 | . . 209 1222 853 Explosions . | . . . . . Melee . | . . . . . Ramming 15 | . . . . 15 Kinetic 2173 | 192 94 209 1127 551 Thermal 914 | 303 127 . . 484 Explosive . | . . . . . Electromagnetic 354 | . . . 95 259 Impact . | . . . . . Slashing . | . . . . . Piercing . | . . . . . Highest Corruption 6 | . 3 3 6 5 Average Corruption 4 | . 2 3 5 4 Corruption Purged . | . . . . . Corruption Blocked . | . . . . . Effects 212 | . 2 11 182 17 Message Errors 58 | . 2 3 51 2 Matter Fused 44 | . . 3 37 4 Heat Flow Errors 27 | . . . 27 . Energy Discharges 27 | . . 3 22 2 Data Loss (minor) 28 | . . 1 22 5 Data Loss (major) 8 | . . . 5 3 Misfires 11 | . . 1 10 . Alerts 6 | . . . 6 . Weapon Failures 3 | . . . 2 1 Overload Shots . | . . . . . Overflow Damage . | . . . . . Projectiles . | . . . . . Explosions . | . . . . . Melee . | . . . . . Knockbacks 10 | . . 1 8 1 Impact . | . . . . . Kinetic 10 | . . 1 8 1 Secondary . | . . . . . Self-Inflicted Damage 6 | . . . . 6 Shots . | . . . . . Rammed 2 | . . . . 2 Targets Rammed 2 | . . . . 2 Kicked . | . . . . . Crushed . | . . . . . Highest Temperature 553 | 140 142 84 249 553 Average Temperature 93 | 41 54 35 100 149 Received Heat Transfer 991 | . . 90 451 450 Effects 13 | . . . . 13 Shutdowns 3 | . . . . 3 Energy Bleed 2 | . . . . 2 Short Circuit 2 | . . . . 2 Damage (minor) 1 | . . . . 1 Damage (major) 5 | . . . . 5 Siege Activations . | . . . . . Martial Activations . | . . . . . Shielding Activations . | . . . . . Robots Disrupted . | . . . . . Combat Hostiles . | . . . . . Robots Corrupted 1 | . . . . 1 Combat Hostiles 1 | . . . . 1 Parts Fried 4 | . . . 2 2 Impact Corruptions . | . . . . . Robots Melted . | . . . . . Combat Hostiles . | . . . . . Parts Melted 6 | 2 2 . . 2 Heat Transferred 2701 | 1110 592 . . 999 Parts Sabotaged . | . . . . . Parts Stolen . | . . . . . Parts Stripped . | . . . . . Power Chain Reactions . | . . . . . Alert | -11 -10 -10 -10 -8 ------- Run | Yrd Mat Min Sub Mat Maximum Alert Level . | . . . . . Low Security (%) 100 | 100 100 100 . 100 Level 1 . | . . . . . Level 2 . | . . . . . Level 3 . | . . . . . Level 4 . | . . . . . Level 5 . | . . . . . High Security . | . . . . . Max Security . | . . . . . Peak Influence 145 | 10 145 78 . 65 Initial 30 | . . 30 . . Average 20 | 1 49 17 . 18 Influence Increases 785 | 50 211 178 44 302 Destroy 0b10 Robot/C 480 | . 100 140 40 200 Destroy 0b10 Robot/NC 85 | 50 10 . . 25 Destroy Leader 100 | . 24 30 . 46 Allied During Kill 12 | . . 8 4 . Trap Triggered on 0b10 10 | . . . . 10 Successful Hack 32 | . 32 . . . Disable Machine 15 | . . . . 15 Destroy Structure 6 | . . . . 6 Lose Combat Pursuer 45 | . 45 . . . Influence Decreases 779 | 50 132 219 82 296 Entered New Map 70 | . . 49 21 . Time Decay 629 | 50 122 170 61 226 Lost Part 80 | . 10 . . 70 Squads Dispatched . | . . . . . Investigation . | . . . . . Extermination . | . . . . . Reinforcement . | . . . . . Assault . | . . . . . Garrison . | . . . . . Intercept . | . . . . . Searches Triggered . | . . . . . Construction Impeded . | . . . . . Haulers Reinforced . | . . . . . Active Scanning Responses . | . . . . . Cargo Convoy Interrupts . | . . . . . Stealth | -11 -10 -10 -10 -8 --------- Run | Yrd Mat Min Sub Mat Distress Signals 3 | . . . . 3 Communications Jammed . | . . . . . Distress Signals . | . . . . . Times Spotted 54 | . 11 7 13 23 Peak Tracking Total 8 | . 6 2 2 8 Tactical Retreats 1 | . 1 . . . Traps | -11 -10 -10 -10 -8 ------- Run | Yrd Mat Min Sub Mat Traps Triggered 2 | . 2 . . . Indirectly . | . . . . . Trap Hack Attempts . | . . . . . Triggered . | . . . . . Disarmed . | . . . . . Reprogrammed . | . . . . . Reused 1 | . . . . 1 Traps Extracted . | . . . . . Installed 1 | . . . . 1 Triggered 1 | . . . . 1 Most Traps Carried 5 | . . 4 5 5 Machines | -11 -10 -10 -10 -8 ---------- Run | Yrd Mat Min Sub Mat Machines Disabled 3 | . . . 2 1 Max in Single Turn 1 | . . . 1 1 Machines Repaired . | . . . . . Machines Dismantled . | . . . . . Machines Sabotaged . | . . . . . Overloaded Fab Kills . | . . . . . Hacking | -11 -10 -10 -10 -8 --------- Run | Yrd Mat Min Sub Mat Machines Accessed 5 | . 3 . 2 . Terminals 3 | . 3 . . . Fabricators . | . . . . . Repair Stations . | . . . . . Recycling Units . | . . . . . Scanalyzers . | . . . . . Garrison Access . | . . . . . Total Hacks 11 | . 6 . 5 . Successful 9 | . 4 . 5 . Failed 2 | . 2 . . . Catastrophic . | . . . . . Database Lockouts . | . . . . . Manual . | . . . . . Terminals 6 | . 6 . . . Fabricators . | . . . . . Repair Stations . | . . . . . Recycling Units . | . . . . . Scanalyzers . | . . . . . Garrison Access . | . . . . . Terminal Hacks 9 | . 4 . 5 . Record 4 | . . . 4 . Prototype ID Bank 2 | . 2 . . . Emergency Access Points 1 | . 1 . . . Locate Traps 1 | . 1 . . . Proto ID Catalog 1 | . . . 1 . Fabricator Hacks . | . . . . . Repair Station Hacks . | . . . . . Recycling Unit Hacks . | . . . . . Scanalyzer . | . . . . . Garrison Access Hacks . | . . . . . Unauthorized Hacks . | . . . . . Terminals . | . . . . . Fabricators . | . . . . . Repair Stations . | . . . . . Recycling Units . | . . . . . Scanalyzers . | . . . . . Garrison Access . | . . . . . Data Cores Recovered . | . . . . . Used . | . . . . . Hacking Detections 3 | . 3 . . . Full Trace Events . | . . . . . Feedback Events . | . . . . . Feedback Blocked . | . . . . . Robot Schematics Acquired . | . . . . . Robots Built . | . . . . . Authchips . | . . . . . Time . | . . . . . Total Robot Build Rating . | . . . . . Part Schematics Acquired . | . . . . . Parts Built . | . . . . . Authchips . | . . . . . Time . | . . . . . Total Part Build Rating . | . . . . . Parts Repaired . | . . . . . Time . | . . . . . Parts Recycled . | . . . . . Recycled Matter . | . . . . . Retrieved Matter . | . . . . . Retrieved Components . | . . . . . Parts Scanalyzed . | . . . . . Part Schematics Acquired . | . . . . . Parts Damaged . | . . . . . Bothacking | -11 -10 -10 -10 -8 ------------ Run | Yrd Mat Min Sub Mat Used RIF Installer . | . . . . . Robots Hacked . | . . . . . Non-combat . | . . . . . Combat . | . . . . . Robot Hacks Applied . | . . . . . Relay Couplers Released . | . . . . . Fabnet Peak Effective % . | . . . . . Robots Rewired . | . . . . . Allies Hacked . | . . . . . Hacks Repelled . | . . . . . Allies | -11 -10 -10 -10 -8 -------- Run | Yrd Mat Min Sub Mat Total Allies 2 | . . 2 . . Largest Group 2 | . . 2 2 . Highest-Rated Group 51 | . . 51 51 . Highest-Rated Ally 31 | . . 31 31 . Total Orders . | . . . . . Ally Attacks 18 | . . 4 14 . Total Damage 273 | . . 81 192 . Kills 3 | . . 2 1 . Allies Corrupted . | . . . . . Allies Melted . | . . . . . Intel | -11 -10 -10 -10 -8 ------- Run | Yrd Mat Min Sub Mat Active Infowar (turns) 3761 | 330 382 671 2378 . Seismic 3761 | 330 382 671 2378 . Robot Analysis Total . | . . . . . Derelict Logs Recovered 3 | . . 1 2 . Drone Launches . | . . . . . Drone Recoveries . | . . . . . Exploration | -11 -10 -10 -10 -8 ------------- Run | Yrd Mat Min Sub Mat Turns Passed 10544 | 473 390 671 8238 772 Spaces Moved 3040 | 170 197 366 1944 363 Core 157 | 16 . . 140 1 Treads 1883 | 154 197 366 1144 22 Legs 130 | . . . 55 75 Wheels 833 | . . . 605 228 Hover . | . . . . . Flight 37 | . . . . 37 Fastest Speed 40 | 50 160 160 130 40 Average Speed 312 | 149 160 160 401 146 Slowest Speed 3550 | 160 160 160 3550 300 Overloaded Moves . | . . . . . Propulsion Burnouts . | . . . . . Robots Hopped . | . . . . . Potential Cave-ins 48 | . . . 48 . Cave-ins Triggered 1 | . . . 1 . Exploration Rate (%) 47 | 6 40 71 90 28 Regions Visited 4 Branch Regions 2 Pre-discovered Areas 2 | . . 1 1 . Known Exits Taken 1 | . . . 1 . Unknown Exits Taken 3 | 1 1 1 . . Scrap Searched 7 | . . 2 5 . Spaces Dug 59 | . . . 59 . Terrain Destroyed 67 | . . . 60 7 Melee . | . . . . . Projectile 67 | . . . 60 7 AOE . | . . . . . Terrain Rammed . | . . . . . Walls Destroyed . | . . . . . Machines Disabled . | . . . . . Actions | -11 -10 -10 -10 -8 --------- Run | Yrd Mat Min Sub Mat Total 3726 | 318 237 435 2224 512 Wait 330 | 97 6 52 139 36 Move 3035 | 169 196 365 1942 363 Hop . | . . . . . Pick Up 79 | 6 11 7 30 25 Fast Attach 9 | 2 . . . 7 Attach 26 | 5 1 . 9 11 Detach . | . . . . . Swap 12 | . 3 . 1 8 Drop 22 | . 1 2 5 14 Fire 209 | 39 19 9 97 45 Melee . | . . . . . Ram 1 | . . . . 1 Kick . | . . . . . Crush 1 | . . . . 1 Escape Stasis 1 | . . . 1 . Rewire . | . . . . . Trap 1 | . . . . 1 Miscellaneous . | . . . . . Route ------- -11/Scrapyard -10/Materials -10/Mines (discovered 3 exits: [*Mat] / [*Exi] / *Sub) -10/Subcaves (discovered 2 exits: *Mat x2) -8/Materials History --------- Turn | Location | Event 13 | -11/Scrapyard | Discovered new exit (range 15) 474 | -11/Scrapyard | Entered Materials 475 | -10/Materials | Build established: Mutant 813 | -10/Materials | Discovered new exit (range 7) 864 | -10/Materials | Entered Mines 1194 | -10/Mines | Learned location of Zion (-6) 1243 | -10/Mines | Found a hidden stash of uninstalled traps 1294 | -10/Mines | Found DCF Scrap (12 items) 1352 | -10/Mines | A weapon hastily lodged in a ceiling crevice suddenly fell to the ground 1447 | -10/Mines | Discovered new exit (range 9) 1484 | -10/Mines | Deemed a non-threat by the Exiles lab entrance 1486 | -10/Mines | Discovered new exit (range 5) 1518 | -10/Mines | Discovered new exit (range 5) 1535 | -10/Mines | Entered Subcaves 1535 | -10/Subcaves | Accompanied by 2 allies 1536 | -10/Subcaves | Approached by a straggling Scientist 1540 | -10/Subcaves | Led the pair of lost Derelicts to an unsafe place 1764 | -10/Subcaves | Core integrity fell below 50% 1901 | -10/Subcaves | Shifting Twisted Machinery released Sub. Shrapnel Launcher 1901 | -10/Subcaves | Discovered new exit (range 12) 1902 | -10/Subcaves | Shifting Twisted Machinery released Sub. Laser 2792 | -10/Subcaves | Visited Clippyterm 2797 | -10/Subcaves | Learned Factory emergency access door positions 3911 | -10/Subcaves | Ambushed by Subdweller buried in earth 3929 | -10/Subcaves | Ambushed by Subdweller buried in earth 3952 | -10/Subcaves | Lost 3 parts (1n1u1w) 4042 | -10/Subcaves | Crushed by falling debris 4692 | -10/Subcaves | Identified exit to Materials 4716 | -10/Subcaves | Core integrity fell below 20% 5014 | -10/Subcaves | Visited 4L-MR0's lab 5369 | -10/Subcaves | Lost 3 parts (1n2w) 5533 | -10/Subcaves | Build established: Hauler-Mutant 6433 | -10/Subcaves | Found Flightbrick 9773 | -10/Subcaves | Entered Materials 9773 | -8/Materials | Evolved 4 slots: Propulsion x2, Utility x2 9774 | -8/Materials | Attached Flightbrick, gained temporary slots: Utility x3 10351 | -8/Materials | Build established: Scavenger-Mutant 10535 | -8/Materials | Core integrity fell below 50% 10545 | -8/Materials | Self-destructed Last Messages --------------- 10536_ Aluminum Leg destroyed. 10536_ U-05 Engineer lays Concrete. 10536_ K-01 Serf collects debris. 10537_ Critical hit (Burn: +37). 10537_ U-05 Engineer lays Concrete. 10539_ K-01 Serf collects debris. 10540_ U-05 Engineer lays Concrete. 10542_ Nuclear Reactor explodes. 10542_ System corrupted: Energy discharge (-2). 10542_ The unstable cave ceiling collapses. 10542_ Nuclear Reactor explodes. 10542_ W-25 Informer destroyed. 10542_ U-05 Engineer lays Concrete. 10543_ K-01 Serf collects debris. 10543_ U-05 Engineer builds a Wall. 10543_ U-05 Engineer lays Concrete. 10544_ U-05 Engineer builds a Wall. 10544_ U-05 Engineer lays Concrete. 10545_ Carbon-fiber Leg destroyed. 10545_ K-01 Serf cleans the Fusion Modulator. Map ----- +----------------------------------------------------+ | ?????????????????????????????????????????????????? | | ?????? ??????????????????????????????????????????? | | ?????? ??????????????????????????????????????????? | | ?????? ??????????????????????????????????????????? | | ?????? #?????????????????????????????????????????? | | ?????? #?????????????????????????????????????????? | | ?????? #?????????????????????????????????????????? | | ?????? #?????????????????????????????????????????? | | ???### ###???????????????????????????????????????? | | ???# #???????????????????????????????????????? | | ???# #???????????????????????????????????????? | | ???+ #???????######??????????????????????????? | | ???? #????? ??????????????????????????? | | ???? #????# ?#????????????????????????? | | ????# #?????# #??????? ? ?????????????? | | ????# #?????# """ """ #??????? ???????????? | | ????# #?????# """ """ #?????? ??????????? | | ????# #?????# """ """ #?????? ?????????? | | ????# ##????# ??????? ?????????? | | ????#% "#?????? ####### ????????? | | ##### ##########+# # ## ?????????? | | % = u g ?????????? | | *% ??????????? | | % u ! g """???????????? | | ####+######+##### [ """ #???????? | | ??## ][ # k @ =%! """ #???????? | | ???# ! # """ = #???????? | | ???# % # """ = % k #???????? | | ??#" ! # """ u="" #???????? | | ?# #! !# u "" ????????? | | # ## # """ "" ????????? | | ##?# [ # """ #???????? | | ???####### """ #???????? | | ?????????# ## ?????? | | ?????????# """ ## ??????? | | ?????????# """ ## ??????? | | ?????????# """ ## ??????? | | ?????????# ### T"####################???????? | | ?????????###+####?#"""???????????????????????????? | | ???????????# #????####???????????????????????????? | | ???????????# #???????????????????????????????????? | | ???????????# #???????????????????????????????????? | | ???????????# #???????????????????????????????????? | | ???????????# #???????????????????????????????????? | | ???????????# #???????????????????????????????????? | | ???????????# #???????????????????????????????????? | | ???????????# #???????????????????????????????????? | | ???????????# #???????????????????????????????????? | | ???????????# #???????????????????????????????????? | | ???????????# #???????????????????????????????????? | +----------------------------------------------------+ Best States ------------- Heat Dissipation 45 Coolant Potential 50 Energy Generation 14 Energy Capacity 275 Matter Stores 300 Matter Capacity 300 Sight Range 16 Terrain Scan Density 10 Armor Coverage 150 Resistance: EM 15 Evasion (%) 62 Recoil Reduction 2 Item Schematics ----------------- None Robot Schematics ------------------ None Fabricated ------------ Nothing Repaired ---------- Nothing Alien Tech Used ----------------- None Achievements -------------- None Challenges ------------ None Game ------ Seed AlloyAlertSystem Manual? 0 Play Time 00:31:38 Cumulative 91.8 hours Start 2025.07.15 @ 10:12:54 End 2025.07.15 @ 10:43:39 Sessions 1 Manual Loads 0 Difficulty Rogue Special Mode None Game No. 150 Rogue 150 Adventurer 0 Explorer 0 Win Type - Total 1 Types 1/0/0/0/0/0/0/0/0/0 Lore% 62 Gallery% 51 Achievement% 46 Wizard Run 0 Options --------- Layout 0 ASCII 0 Keyboard 0 Movement Mouse Keybinds 0 Fullscreen 1 Font 16/SmallcapsGlow Map View 75x55 Zoom Use 0% Tactical HUD 1 Map Filters NONE Filters NONE Steam 1 RUN: 363f75f8-603b-46d5-8b74-54b8b48a9c39